[Event "7th Paul Keres Memorial Festival 2026 Classic A"]
[Site "ESTONIA Resort Hotel & Spa conference center, EE"]
[Date "2026.07.30"]
[Round "6"]
[White "Keinanen, Toivo"]
[Black "Haitin, Ilja"]
[Result "1/2-1/2"]
[Board "3"]
[TimeControl "5400+30"]
[WhiteFideId "509825"]
[BlackFideId "4501764"]
[WhiteElo "2495"]
[BlackElo "2273"]
[WhiteTitle "IM"]
[BlackTitle "FM"]
[WhiteClock "0:07:51"]
[BlackClock "0:01:24"]
[Variant "Standard"]
[EndDate "2026.07.30"]
[EndTime "18:24:50"]

1. e4 {[%clk 1:29:17]}  e5 {[%clk 1:30:42]} 2. Nf3 {[%clk 1:26:47]}  Nf6 {[%clk 1:31:10]} 3. Nxe5 {[%clk 1:27:12]}  d6 {[%clk 1:31:37]}
4. Nf3 {[%clk 1:27:38]}  Nxe4 {[%clk 1:32:01]} 5. c4 {[%clk 1:28:06]}  Nc6 {[%clk 1:30:01]} 6. d3 {[%clk 1:28:06]}  Nf6 {[%clk 1:30:11]}
7. d4 {[%clk 1:28:34]}  d5 {[%clk 1:29:28]} 8. c5 {[%clk 1:29:03]}  a6 {[%clk 1:26:17]} 9. Nc3 {[%clk 1:23:43]}  g6 {[%clk 1:13:00]}
10. Bd3 {[%clk 1:15:00]}  Bg4 {[%clk 1:05:51]} 11. O-O {[%clk 1:09:27]}  Bxf3 {[%clk 0:51:22]} 12. Re1+ {[%clk 0:42:01]}  Be4 {[%clk 0:50:35]}
13. f3 {[%clk 0:42:20]}  Nxd4 {[%clk 0:21:12]} 14. fxe4 {[%clk 0:41:56]}  dxe4 {[%clk 0:18:18]} 15. Nxe4 {[%clk 0:31:51]}  Ne6 {[%clk 0:12:03]}
16. Qa4+ {[%clk 0:25:09]}  c6 {[%clk 0:12:14]} 17. Bg5 {[%clk 0:24:38]}  Be7 {[%clk 0:11:39]} 18. Bxf6 {[%clk 0:20:08]}  Bxf6 {[%clk 0:11:47]}
19. Nd6+ {[%clk 0:20:13]}  Kf8 {[%clk 0:11:43]} 20. Qb3 {[%clk 0:19:38]}  Kg7 {[%clk 0:08:24]} 21. Qxb7 {[%clk 0:13:29]}  Qc7 {[%clk 0:06:16]}
22. Qxc7 {[%clk 0:12:36]}  Nxc7 {[%clk 0:06:24]} 23. Bc4 {[%clk 0:12:54]}  Rhf8 {[%clk 0:02:53]} 24. Rad1 {[%clk 0:12:36]}  Nb5 {[%clk 0:01:41]}
25. a4 {[%clk 0:10:04]}  Nxd6 {[%clk 0:01:07]} 26. cxd6 {[%clk 0:08:25]}  Bxb2 {[%clk 0:00:44]} 27. Re7 {[%clk 0:08:19]}  c5 {[%clk 0:00:35]}
28. Rc7 {[%clk 0:04:58]}  Bd4+ {[%clk 0:00:43]} 29. Kh1 {[%clk 0:05:27]}  Rad8 {[%clk 0:00:34]} 30. d7 {[%clk 0:05:26]}  a5 {[%clk 0:00:46]}
31. Re1 {[%clk 0:05:34]}  Rb8 {[%clk 0:00:35]} 32. Bb5 {[%clk 0:05:46]}  Rfd8 {[%clk 0:00:34]} 33. g3 {[%clk 0:05:25]}  Kf8 {[%clk 0:00:35]}
34. Kg2 {[%clk 0:05:21]}  Bc3 {[%clk 0:00:38]} 35. Re2 {[%clk 0:02:08]}  Bb4 {[%clk 0:00:39]} 36. Kf3 {[%clk 0:02:23]}  c4 {[%clk 0:00:36]}
37. Rxc4 {[%clk 0:02:28]}  Be7 {[%clk 0:00:34]} 38. Rce4 {[%clk 0:02:26]}  Rxb5 {[%clk 0:00:35]} 39. axb5 {[%clk 0:02:23]}  Rxd7 {[%clk 0:01:04]}
40. b6 {[%clk 0:01:15]}  Bc5 {[%clk 0:01:34]} 41. Rb2 {[%clk 0:00:54]}  Rb7 {[%clk 0:00:49]} 42. Rb5 {[%clk 0:01:23]}  Bg1 {[%clk 0:01:06]}
43. Rxa5 {[%clk 0:00:51]}  Rxb6 {[%clk 0:01:18]} 44. Kg2 {[%clk 0:01:12]}  Rb1 {[%clk 0:01:31]} 45. Ra8+ {[%clk 0:00:36]}  Kg7 {[%clk 0:01:59]}
46. Rc8 {[%clk 0:00:59]}  Bb6 {[%clk 0:00:40]} 47. Rc2 {[%clk 0:00:49]}  Rg1+ {[%clk 0:00:47]} 48. Kh3 {[%clk 0:01:18]}  Rf1 {[%clk 0:00:56]}
49. Re7 {[%clk 0:01:01]}  h5 {[%clk 0:01:02]} 50. Rb7 {[%clk 0:00:53]}  Bd4 {[%clk 0:01:04]} 51. Kg2 {[%clk 0:01:15]}  Rf5 {[%clk 0:00:58]}
52. Rd7 {[%clk 0:00:44]}  Bb6 {[%clk 0:00:46]} 53. Re2 {[%clk 0:00:49]}  Bc5 {[%clk 0:00:57]} 54. Rc7 {[%clk 0:01:08]}  Bd4 {[%clk 0:01:06]}
55. Rb7 {[%clk 0:01:37]}  Bf6 {[%clk 0:01:21]} 56. h3 {[%clk 0:01:19]}  Bd4 {[%clk 0:00:54]} 57. Rd7 {[%clk 0:01:28]}  Bc3 {[%clk 0:00:55]}
58. g4 {[%clk 0:01:32]}  hxg4 {[%clk 0:01:21]} 59. hxg4 {[%clk 0:02:02]}  Rf4 {[%clk 0:01:01]} 60. Kg3 {[%clk 0:02:14]}  g5 {[%clk 0:00:35]}
61. Rd3 {[%clk 0:01:34]}  Bf6 {[%clk 0:00:42]} 62. Rf3 {[%clk 0:02:00]}  Ra4 {[%clk 0:00:46]} 63. Rf5 {[%clk 0:01:57]}  Ra3+ {[%clk 0:01:06]}
64. Kf2 {[%clk 0:02:08]}  Ra4 {[%clk 0:01:16]} 65. Kf3 {[%clk 0:02:37]}  Ra3+ {[%clk 0:01:27]} 66. Re3 {[%clk 0:03:06]}  Ra6 {[%clk 0:01:39]}
67. Rd3 {[%clk 0:03:23]}  Rb6 {[%clk 0:01:39]} 68. Ra3 {[%clk 0:03:00]}  Rc6 {[%clk 0:01:42]} 69. Rb5 {[%clk 0:02:41]}  Rc4 {[%clk 0:00:59]}
70. Rf5 {[%clk 0:02:51]}  Rc6 {[%clk 0:01:10]} 71. Ra4 {[%clk 0:03:17]}  Rc3+ {[%clk 0:01:00]} 72. Ke4 {[%clk 0:03:19]}  Rg3 {[%clk 0:00:51]}
73. Kd5 {[%clk 0:03:48]}  Rd3+ {[%clk 0:00:59]} 74. Kc5 {[%clk 0:04:16]}  Rc3+ {[%clk 0:00:49]} 75. Rc4 {[%clk 0:04:30]}  Ra3 {[%clk 0:00:51]}
76. Kc6 {[%clk 0:03:57]}  Rg3 {[%clk 0:00:41]} 77. Rd5 {[%clk 0:02:32]}  Rf3 {[%clk 0:00:47]} 78. Kd7 {[%clk 0:02:46]}  Ra3 {[%clk 0:00:41]}
79. Rf5 {[%clk 0:02:17]}  Rd3+ {[%clk 0:00:50]} 80. Kc6 {[%clk 0:02:46]}  Rg3 {[%clk 0:01:03]} 81. Kc7 {[%clk 0:02:20]}  Rd3 {[%clk 0:00:50]}
82. Kc8 {[%clk 0:01:36]}  Rd8+ {[%clk 0:00:49]} 83. Kb7 {[%clk 0:02:05]}  Rd7+ {[%clk 0:00:48]} 84. Kb6 {[%clk 0:02:24]}  Rd3 {[%clk 0:00:56]}
85. Kc7 {[%clk 0:02:02]}  Rd1 {[%clk 0:00:42]} 86. Rc2 {[%clk 0:01:29]}  Ra1 {[%clk 0:00:39]} 87. Rc6 {[%clk 0:01:13]}  Be7 {[%clk 0:00:45]}
88. Kd7 {[%clk 0:01:11]}  Re1 {[%clk 0:00:52]} 89. Rc2 {[%clk 0:01:09]}  Bf6 {[%clk 0:00:52]} 90. Rc6 {[%clk 0:01:20]}  Be7 {[%clk 0:01:05]}
91. Ra6 {[%clk 0:00:46]}  Re2 {[%clk 0:01:13]} 92. Rb5 {[%clk 0:00:46]}  Bf6 {[%clk 0:01:08]} 93. Rbb6 {[%clk 0:00:55]}  Rf2 {[%clk 0:00:59]}
94. Rb7 {[%clk 0:00:57]}  Rf4 {[%clk 0:00:49]} 95. Raa7 {[%clk 0:01:04]}  Rxg4 {[%clk 0:00:42]} 96. Kd6 {[%clk 0:01:05]}  Kg6 {[%clk 0:00:39]}
97. Rxf7 {[%clk 0:01:22]}  Rd4+ {[%clk 0:00:40]} 98. Kc6 {[%clk 0:01:19]}  Rc4+ {[%clk 0:00:52]} 99. Kd5 {[%clk 0:01:10]}  Rd4+ {[%clk 0:01:21]}
100. Kc6 {[%clk 0:01:22]}  Rc4+ {[%clk 0:01:44]} 101. Kb5 {[%clk 0:01:39]}  Rf4 {[%clk 0:02:07]} 102. Rf8 {[%clk 0:01:44]}  Rf1 {[%clk 0:02:02]}
103. Kc4 {[%clk 0:01:53]}  Rc1+ {[%clk 0:02:12]} 104. Kd3 {[%clk 0:02:08]}  Rd1+ {[%clk 0:02:07]} 105. Ke2 {[%clk 0:02:33]}  Rd6 {[%clk 0:02:14]}
106. Rb7 {[%clk 0:02:20]}  Ra6 {[%clk 0:02:16]} 107. Rfb8 {[%clk 0:02:28]}  Ra2+ {[%clk 0:01:50]} 108. Kf3 {[%clk 0:02:56]}  Ra4 {[%clk 0:01:08]}
109. Rb4 {[%clk 0:03:09]}  Ra1 {[%clk 0:01:22]} 110. Rg8+ {[%clk 0:03:00]}  Kf7 {[%clk 0:01:19]} 111. Rc8 {[%clk 0:03:09]}  Kg6 {[%clk 0:01:24]}
112. Rc6 {[%clk 0:03:24]}  Rf1+ {[%clk 0:01:26]} 113. Kg3 {[%clk 0:03:19]}  Rf5 {[%clk 0:01:04]} 114. Rb3 {[%clk 0:03:35]}  Rf4 {[%clk 0:00:55]}
115. Rc5 {[%clk 0:03:09]}  Ra4 {[%clk 0:00:43]} 116. Rc6 {[%clk 0:03:05]}  Rf4 {[%clk 0:00:59]} 117. Ra6 {[%clk 0:02:55]}  Rf1 {[%clk 0:01:01]}
118. Rb7 {[%clk 0:03:00]}  Rf4 {[%clk 0:01:08]} 119. Rb8 {[%clk 0:02:52]}  Kf5 {[%clk 0:00:51]} 120. Rf8 {[%clk 0:02:50]}  Rg4+ {[%clk 0:00:44]}
121. Kh3 {[%clk 0:02:55]}  Rh4+ {[%clk 0:01:09]} 122. Kg2 {[%clk 0:03:23]}  Rg4+ {[%clk 0:01:35]} 123. Kf3 {[%clk 0:03:33]}  Rf4+ {[%clk 0:02:01]}
124. Ke3 {[%clk 0:03:52]}  Kg6 {[%clk 0:02:12]} 125. Re8 {[%clk 0:03:47]}  Rf1 {[%clk 0:02:06]} 126. Rg8+ {[%clk 0:04:13]}  Kf7 {[%clk 0:02:00]}
127. Rc8 {[%clk 0:04:29]}  Rf4 {[%clk 0:02:10]} 128. Rc2 {[%clk 0:04:38]}  Kg6 {[%clk 0:02:01]} 129. Rf2 {[%clk 0:04:55]}  Rxf2 {[%clk 0:02:00]}
130. Kxf2 {[%clk 0:05:23]}  Kf5 {[%clk 0:02:10]} 131. Ke3 {[%clk 0:05:24]}  g4 {[%clk 0:01:56]} 132. Ra5+ {[%clk 0:05:50]}  Be5 {[%clk 0:02:10]}
133. Rb5 {[%clk 0:06:17]}  g3 {[%clk 0:01:38]} 134. Kf3 {[%clk 0:06:41]}  Ke6 {[%clk 0:01:33]} 135. Ke4 {[%clk 0:06:42]}  g2 {[%clk 0:00:38]}
136. Rb1 {[%clk 0:06:58]}  Bh2 {[%clk 0:01:01]} 137. Rd1 {[%clk 0:07:22]}  g1=Q {[%clk 0:01:24]} 138. Rxg1 {[%clk 0:07:51]} 1/2-1/2

[Event "7th Paul Keres Memorial Festival 2026 Classic A"]
[Site "ESTONIA Resort Hotel & Spa conference center, EE"]
[Date "2026.07.30"]
[Round "6"]
[White "Ostensen, Nicolai Maxime"]
[Black "Maltsevskaya, Aleksandra"]
[Result "1/2-1/2"]
[Board "4"]
[TimeControl "5400+30"]
[WhiteFideId "1546970"]
[BlackFideId "24174041"]
[WhiteElo "2407"]
[BlackElo "2360"]
[WhiteTitle "FM"]
[BlackTitle "IM"]
[WhiteClock "0:00:49"]
[BlackClock "0:02:08"]
[Variant "Standard"]
[EndDate "2026.07.30"]
[EndTime "17:20:29"]

1. c4 {[%clk 1:30:57]}  e6 {[%clk 1:28:26]} 2. g3 {[%clk 1:30:43]}  d5 {[%clk 1:28:48]} 3. Bg2 {[%clk 1:31:01]}  dxc4 {[%clk 1:29:11]}
4. Qa4+ {[%clk 1:31:11]}  c6 {[%clk 1:29:34]} 5. Qxc4 {[%clk 1:31:34]}  c5 {[%clk 1:29:59]} 6. Nf3 {[%clk 1:31:31]}  Nf6 {[%clk 1:30:14]}
7. O-O {[%clk 1:31:34]}  Be7 {[%clk 1:29:58]} 8. Qc2 {[%clk 1:26:35]}  O-O {[%clk 1:29:54]} 9. Rd1 {[%clk 1:25:59]}  Nc6 {[%clk 1:30:14]}
10. Nc3 {[%clk 1:23:21]}  e5 {[%clk 1:12:55]} 11. b3 {[%clk 1:23:33]}  Bg4 {[%clk 1:12:26]} 12. d3 {[%clk 1:13:00]}  Rc8 {[%clk 1:04:05]}
13. Qb2 {[%clk 1:09:43]}  Qd7 {[%clk 1:03:36]} 14. Bg5 {[%clk 1:08:49]}  h6 {[%clk 1:02:49]} 15. Bxf6 {[%clk 1:09:05]}  Bxf6 {[%clk 1:03:13]}
16. Ne4 {[%clk 1:08:58]}  Be7 {[%clk 1:03:00]} 17. Rac1 {[%clk 0:43:20]}  b6 {[%clk 0:52:14]} 18. Nxe5 {[%clk 0:42:26]}  Nxe5 {[%clk 0:52:35]}
19. Qxe5 {[%clk 0:42:51]}  Bxe2 {[%clk 0:52:59]} 20. Nxc5 {[%clk 0:22:39]}  Bxc5 {[%clk 0:52:45]} 21. Qxe2 {[%clk 0:22:52]}  Rfe8 {[%clk 0:53:08]}
22. Qd2 {[%clk 0:20:44]}  Bd4 {[%clk 0:48:30]} 23. Rc4 {[%clk 0:17:57]}  b5 {[%clk 0:44:10]} 24. Rxc8 {[%clk 0:17:02]}  Rxc8 {[%clk 0:44:08]}
25. Bf3 {[%clk 0:15:04]}  Qc7 {[%clk 0:43:57]} 26. Bg4 {[%clk 0:14:38]}  Rd8 {[%clk 0:43:16]} 27. Rc1 {[%clk 0:14:15]}  Qd6 {[%clk 0:42:19]}
28. Bf3 {[%clk 0:14:18]}  Bb6 {[%clk 0:40:23]} 29. Be4 {[%clk 0:13:25]}  Qe5 {[%clk 0:40:41]} 30. Rc2 {[%clk 0:13:08]}  h5 {[%clk 0:39:51]}
31. Kg2 {[%clk 0:12:39]}  g6 {[%clk 0:40:03]} 32. h4 {[%clk 0:12:00]}  Kg7 {[%clk 0:40:26]} 33. Qg5 {[%clk 0:11:43]}  f5 {[%clk 0:28:53]}
34. Bf3 {[%clk 0:08:22]}  Qf6 {[%clk 0:29:14]} 35. Qxf6+ {[%clk 0:06:15]}  Kxf6 {[%clk 0:29:36]} 36. Rc6+ {[%clk 0:06:38]}  Kf7 {[%clk 0:29:42]}
37. Be2 {[%clk 0:06:23]}  b4 {[%clk 0:29:33]} 38. Kf1 {[%clk 0:05:50]}  Rd4 {[%clk 0:29:53]} 39. Ke1 {[%clk 0:05:39]}  Kg7 {[%clk 0:30:17]}
40. Bf1 {[%clk 0:04:39]}  Rd5 {[%clk 0:30:30]} 41. Rc4 {[%clk 0:02:46]}  Rd4 {[%clk 0:29:54]} 42. Rc2 {[%clk 0:02:46]}  Rd5 {[%clk 0:30:06]}
43. Kd1 {[%clk 0:02:32]}  Kf6 {[%clk 0:30:29]} 44. f3 {[%clk 0:01:45]}  Rd4 {[%clk 0:30:08]} 45. Rc6+ {[%clk 0:01:55]}  Kg7 {[%clk 0:30:13]}
46. Be2 {[%clk 0:01:54]}  f4 {[%clk 0:30:04]} 47. gxf4 {[%clk 0:01:28]}  Rxf4 {[%clk 0:21:48]} 48. Rc4 {[%clk 0:01:02]}  Bd4 {[%clk 0:22:10]}
49. Ke1 {[%clk 0:01:10]}  Rxh4 {[%clk 0:21:52]} 50. Kf1 {[%clk 0:01:39]}  a5 {[%clk 0:16:16]} 51. Kg2 {[%clk 0:01:50]}  Kf6 {[%clk 0:15:47]}
52. Rc6+ {[%clk 0:01:47]}  Kf5 {[%clk 0:15:57]} 53. Ra6 {[%clk 0:01:57]}  Be5 {[%clk 0:15:58]} 54. f4 {[%clk 0:00:57]}  Kxf4 {[%clk 0:12:14]}
55. Rxg6 {[%clk 0:01:17]}  Ke3 {[%clk 0:10:27]} 56. Re6 {[%clk 0:01:04]}  Kd4 {[%clk 0:07:49]} 57. Rc6 {[%clk 0:01:20]}  Rh2+ {[%clk 0:07:32]}
58. Kf3 {[%clk 0:01:27]}  h4 {[%clk 0:07:33]} 59. Rc4+ {[%clk 0:01:52]}  Kd5 {[%clk 0:07:54]} 60. Ke3 {[%clk 0:01:53]}  h3 {[%clk 0:04:23]}
61. Rh4 {[%clk 0:02:09]}  Bf6 {[%clk 0:02:46]} 62. Rh5+ {[%clk 0:02:17]}  Kd6 {[%clk 0:03:04]} 63. Rxa5 {[%clk 0:01:00]}  Rh1 {[%clk 0:01:56]}
64. Rh5 {[%clk 0:01:15]}  h2 {[%clk 0:01:24]} 65. Bf3 {[%clk 0:00:36]}  Re1+ {[%clk 0:01:45]} 66. Kf2 {[%clk 0:00:49]}  Ra1 {[%clk 0:02:08]} 1/2-1/2

[Event "7th Paul Keres Memorial Festival 2026 Classic A"]
[Site "ESTONIA Resort Hotel & Spa conference center, EE"]
[Date "2026.07.30"]
[Round "6"]
[White "Fecker, Noah"]
[Black "Kirk, Ezra"]
[Result "0-1"]
[Board "5"]
[TimeControl "5400+30"]
[WhiteFideId "1334263"]
[BlackFideId "600067"]
[WhiteElo "2371"]
[BlackElo "2378"]
[WhiteTitle "FM"]
[BlackTitle "IM"]
[WhiteClock "0:01:03"]
[BlackClock "0:01:58"]
[Variant "Standard"]
[EndDate "2026.07.30"]
[EndTime "17:13:15"]

1. e4 {[%clk 1:30:56]}  c5 {[%clk 1:30:54]} 2. Nf3 {[%clk 1:31:19]}  d6 {[%clk 1:31:19]} 3. Bb5+ {[%clk 1:31:38]}  Nd7 {[%clk 1:31:42]}
4. O-O {[%clk 1:31:15]}  a6 {[%clk 1:31:21]} 5. Be2 {[%clk 1:31:14]}  Ngf6 {[%clk 1:29:08]} 6. d3 {[%clk 1:31:27]}  e6 {[%clk 1:24:15]}
7. c4 {[%clk 1:26:30]}  Be7 {[%clk 1:21:57]} 8. Nc3 {[%clk 1:25:41]}  O-O {[%clk 1:21:59]} 9. d4 {[%clk 1:22:32]}  cxd4 {[%clk 1:22:17]}
10. Nxd4 {[%clk 1:21:51]}  Qc7 {[%clk 1:21:46]} 11. Be3 {[%clk 1:15:53]}  b6 {[%clk 1:21:53]} 12. Rc1 {[%clk 1:12:50]}  Bb7 {[%clk 1:21:36]}
13. f3 {[%clk 1:12:41]}  Rac8 {[%clk 1:21:21]} 14. Qd2 {[%clk 1:10:11]}  Rfe8 {[%clk 1:21:20]} 15. Rfd1 {[%clk 1:09:35]}  Qb8 {[%clk 1:19:43]}
16. Kh1 {[%clk 1:07:04]}  Bf8 {[%clk 1:18:28]} 17. Bf1 {[%clk 1:01:13]}  h5 {[%clk 1:06:34]} 18. Bg5 {[%clk 0:57:09]}  Qa8 {[%clk 0:59:28]}
19. Nc2 {[%clk 0:51:59]}  Be7 {[%clk 0:50:56]} 20. Qe1 {[%clk 0:44:56]}  Ne5 {[%clk 0:33:06]} 21. Na4 {[%clk 0:30:48]}  Qa7 {[%clk 0:27:26]}
22. b3 {[%clk 0:28:28]}  Bc6 {[%clk 0:23:51]} 23. Nc3 {[%clk 0:27:51]}  Ng6 {[%clk 0:17:45]} 24. Nd4 {[%clk 0:25:37]}  Bd7 {[%clk 0:17:03]}
25. a4 {[%clk 0:23:07]}  Qb8 {[%clk 0:16:57]} 26. Be3 {[%clk 0:18:01]}  h4 {[%clk 0:16:29]} 27. Qf2 {[%clk 0:16:41]}  Bd8 {[%clk 0:15:36]}
28. Nde2 {[%clk 0:14:35]}  Nh5 {[%clk 0:14:23]} 29. g4 {[%clk 0:14:06]}  hxg3 {[%clk 0:14:06]} 30. hxg3 {[%clk 0:14:19]}  Nf6 {[%clk 0:13:48]}
31. Nf4 {[%clk 0:12:26]}  Ne5 {[%clk 0:10:55]} 32. Kg2 {[%clk 0:11:19]}  Bc6 {[%clk 0:09:18]} 33. g4 {[%clk 0:10:05]}  Nh7 {[%clk 0:05:30]}
34. Be2 {[%clk 0:09:52]}  Nf8 {[%clk 0:05:03]} 35. Rh1 {[%clk 0:07:40]}  Nfg6 {[%clk 0:05:24]} 36. Nh5 {[%clk 0:07:19]}  b5 {[%clk 0:02:38]}
37. cxb5 {[%clk 0:05:19]}  Ba8 {[%clk 0:02:37]} 38. b6 {[%clk 0:04:30]}  f5 {[%clk 0:01:20]} 39. gxf5 {[%clk 0:03:16]}  exf5 {[%clk 0:01:48]}
40. Bxa6 {[%clk 0:02:58]}  fxe4 {[%clk 0:01:48]} 41. Bxc8 {[%clk 0:02:11]}  exf3+ {[%clk 0:02:03]} 42. Kf1 {[%clk 0:02:24]}  Qxc8 {[%clk 0:02:16]}
43. Nb5 {[%clk 0:02:11]}  Qf5 {[%clk 0:01:53]} 44. Qc2 {[%clk 0:02:12]}  Be4 {[%clk 0:01:40]} 45. Nxd6 {[%clk 0:02:17]}  Bd3+ {[%clk 0:01:38]}
46. Ke1 {[%clk 0:02:34]}  Bxc2 {[%clk 0:01:18]} 47. Nxf5 {[%clk 0:03:01]}  Bxf5 {[%clk 0:01:40]} 48. b7 {[%clk 0:03:02]}  Ba5+ {[%clk 0:01:29]}
49. Kf1 {[%clk 0:03:24]}  Ng4 {[%clk 0:01:01]} 50. Ba7 {[%clk 0:02:55]}  Rb8 {[%clk 0:00:52]} 51. b4 {[%clk 0:00:49]}  Bd3+ {[%clk 0:00:55]}
52. Kg1 {[%clk 0:01:06]}  Rxb7 {[%clk 0:01:20]} 53. Rh3 {[%clk 0:01:13]}  f2+ {[%clk 0:00:47]} 54. Bxf2 {[%clk 0:01:37]}  Nxf2 {[%clk 0:00:38]}
55. Rc8+ {[%clk 0:01:39]}  Nf8 {[%clk 0:00:53]} 56. Kxf2 {[%clk 0:00:41]}  Bf5 {[%clk 0:00:53]} 57. Rxf8+ {[%clk 0:00:35]}  Kxf8 {[%clk 0:01:18]}
58. Rf3 {[%clk 0:01:03]}  Bb6+ {[%clk 0:01:39]} 59. Kg3 {[%clk 0:01:03]}  g6 {[%clk 0:01:58]} 0-1

[Event "7th Paul Keres Memorial Festival 2026 Classic A"]
[Site "ESTONIA Resort Hotel & Spa conference center, EE"]
[Date "2026.07.30"]
[Round "6"]
[White "Ternault, Mathieu"]
[Black "Juknis, Paulius"]
[Result "1-0"]
[Board "6"]
[TimeControl "5400+30"]
[WhiteFideId "20641532"]
[BlackFideId "12802247"]
[WhiteElo "2281"]
[BlackElo "2157"]
[WhiteTitle "FM"]
[BlackTitle "CM"]
[WhiteClock "0:01:05"]
[BlackClock "0:06:01"]
[Variant "Standard"]
[EndDate "2026.07.30"]
[EndTime "16:49:01"]

1. d4 {[%clk 1:30:39]}  f5 {[%clk 1:30:20]} 2. Bf4 {[%clk 1:29:56]}  Nf6 {[%clk 1:29:59]} 3. e3 {[%clk 1:29:39]}  d6 {[%clk 1:29:40]}
4. Nc3 {[%clk 1:29:24]}  g6 {[%clk 1:28:50]} 5. h4 {[%clk 1:29:32]}  h6 {[%clk 1:29:04]} 6. Qf3 {[%clk 1:28:13]}  Bg7 {[%clk 1:28:08]}
7. Qg3 {[%clk 1:28:30]}  Kf7 {[%clk 1:25:00]} 8. Nh3 {[%clk 1:24:43]}  Nc6 {[%clk 1:19:40]} 9. O-O-O {[%clk 1:23:42]}  e6 {[%clk 1:19:35]}
10. Bc4 {[%clk 1:07:59]}  a6 {[%clk 1:11:26]} 11. Bb3 {[%clk 0:55:15]}  Na5 {[%clk 1:09:46]} 12. e4 {[%clk 0:53:17]}  Nxb3+ {[%clk 1:09:28]}
13. axb3 {[%clk 0:46:41]}  Bd7 {[%clk 1:01:42]} 14. e5 {[%clk 0:44:12]}  Nh5 {[%clk 0:58:27]} 15. Qe3 {[%clk 0:39:21]}  Nxf4 {[%clk 0:43:44]}
16. Nxf4 {[%clk 0:37:26]}  Qe7 {[%clk 0:35:38]} 17. h5 {[%clk 0:31:10]}  gxh5 {[%clk 0:34:30]} 18. Nxh5 {[%clk 0:28:01]}  Rag8 {[%clk 0:30:21]}
19. g4 {[%clk 0:24:42]}  fxg4 {[%clk 0:29:32]} 20. Ne4 {[%clk 0:21:35]}  dxe5 {[%clk 0:23:47]} 21. Nxg7 {[%clk 0:18:22]}  Kxg7 {[%clk 0:23:59]}
22. Qg3 {[%clk 0:15:55]}  Bc6 {[%clk 0:22:23]} 23. Qxe5+ {[%clk 0:15:08]}  Kf8 {[%clk 0:22:44]} 24. Rhe1 {[%clk 0:08:02]}  Bxe4 {[%clk 0:19:49]}
25. Qxe4 {[%clk 0:08:08]}  c6 {[%clk 0:19:16]} 26. d5 {[%clk 0:07:43]}  cxd5 {[%clk 0:18:46]} 27. Rxd5 {[%clk 0:07:18]}  Rg5 {[%clk 0:18:09]}
28. Rxg5 {[%clk 0:01:05]}  hxg5 {[%clk 0:16:11]} 29. Qxg4 {[%clk 0:00:36]}  Rh4 {[%clk 0:16:13]} 30. Qg3 {[%clk 0:00:33]}  Qb4 {[%clk 0:15:23]}
31. Qb8+ {[%clk 0:00:36]}  Kf7 {[%clk 0:14:43]} 32. Qc7+ {[%clk 0:01:05]}  Qe7 {[%clk 0:14:51]} 33. Qc8 {[%clk 0:01:06]}  Rh7 {[%clk 0:11:31]}
34. Kb1 {[%clk 0:01:22]}  Kf6 {[%clk 0:10:54]} 35. Re3 {[%clk 0:01:23]}  Qd7 {[%clk 0:08:15]} 36. Qg8 {[%clk 0:00:51]}  Rg7 {[%clk 0:07:59]}
37. Qf8+ {[%clk 0:01:10]}  Rf7 {[%clk 0:07:54]} 38. Qh6+ {[%clk 0:01:08]}  Kf5 {[%clk 0:07:07]} 39. Rf3+ {[%clk 0:01:25]}  Ke4 {[%clk 0:07:29]}
40. Rd3 {[%clk 0:01:05]}  Qe7 {[%clk 0:06:01]} 1-0

[Event "7th Paul Keres Memorial Festival 2026 Classic A"]
[Site "ESTONIA Resort Hotel & Spa conference center, EE"]
[Date "2026.07.30"]
[Round "6"]
[White "Lagarde, Maxime"]
[Black "Berzina, Ilze"]
[Result "1/2-1/2"]
[Board "7"]
[TimeControl "5400+30"]
[WhiteFideId "662399"]
[BlackFideId "11601345"]
[WhiteElo "2622"]
[BlackElo "2154"]
[WhiteTitle "GM"]
[BlackTitle "WGM"]
[WhiteClock "0:58:31"]
[BlackClock "0:37:31"]
[Variant "Standard"]
[EndDate "2026.07.30"]
[EndTime "15:06:05"]

1. d4 {[%clk 1:30:58]}  d5 {[%clk 1:30:28]} 2. c4 {[%clk 1:31:23]}  e6 {[%clk 1:30:10]} 3. Nc3 {[%clk 1:31:47]}  c6 {[%clk 1:30:45]}
4. Nf3 {[%clk 1:30:20]}  dxc4 {[%clk 1:31:00]} 5. g3 {[%clk 1:28:52]}  b5 {[%clk 1:30:02]} 6. Bg2 {[%clk 1:29:11]}  Bb7 {[%clk 1:29:58]}
7. O-O {[%clk 1:28:25]}  Nd7 {[%clk 1:27:23]} 8. e4 {[%clk 1:28:28]}  Ngf6 {[%clk 1:25:25]} 9. Qe2 {[%clk 1:27:50]}  Be7 {[%clk 1:23:01]}
10. h4 {[%clk 1:27:42]}  O-O {[%clk 1:21:45]} 11. Rd1 {[%clk 1:23:05]}  b4 {[%clk 1:16:02]} 12. e5 {[%clk 1:23:14]}  bxc3 {[%clk 1:07:51]}
13. exf6 {[%clk 1:23:40]}  Bxf6 {[%clk 1:04:04]} 14. Ne5 {[%clk 1:21:30]}  cxb2 {[%clk 1:02:10]} 15. Bxb2 {[%clk 1:21:02]}  Nb6 {[%clk 1:02:12]}
16. a4 {[%clk 1:15:52]}  a5 {[%clk 0:59:29]} 17. Ba3 {[%clk 1:14:43]}  Be7 {[%clk 0:51:40]} 18. Bc5 {[%clk 1:10:46]}  Bxc5 {[%clk 0:45:21]}
19. dxc5 {[%clk 1:11:11]}  Nd5 {[%clk 0:45:48]} 20. Qxc4 {[%clk 1:10:28]}  Qc7 {[%clk 0:43:48]} 21. Qd4 {[%clk 1:10:17]}  Ba6 {[%clk 0:40:52]}
22. h5 {[%clk 1:05:18]}  Be2 {[%clk 0:37:46]} 23. Re1 {[%clk 1:04:32]}  Bxh5 {[%clk 0:37:31]} 24. Nc4 {[%clk 0:58:31]} 1/2-1/2